lending/lending_fUSD_20250813
["ID","MTS","AMOUNT","RATE_DAILY","PERIOD"]
[378833296,1755045051943,-400.0,0.00049315,120]
[378833297,1755045051953,-400.0,0.00049315,120]
[378833298,1755045051963,-500.14,0.00049315,120]
[378833299,1755045051972,-400.0,0.00049315,120]
[378833300,1755045051982,-400.0,0.00049315,120]
[378833301,1755045051991,-401.86669387,0.00049315,120]
[378833302,1755045052003,-400.0,0.00049315,120]
[378833303,1755045052013,-400.0,0.00049315,120]
[378833304,1755045052023,-400.0,0.00049315,120]
[378833305,1755045052032,-400.0,0.00049315,120]
[378833306,1755045052042,-400.0,0.00049315,120]
[378833307,1755045052051,-400.0,0.00049315,120]
[378833308,1755045052061,-400.0,0.00049315,120]
[378833309,1755045052070,-415.04,0.00049315,120]
[378833310,1755045052080,-1153.49,0.00049315,120]
[378833311,1755045052090,-330.03033266,0.00049315,120]
[378833312,1755045052100,-401.58524296,0.00049315,120]
[378833313,1755045052109,-400.0,0.00049315,120]
[378833314,1755045052119,-400.0,0.00049315,120]
[378833315,1755045052128,-444.39,0.00049315,120]
[378833316,1755045052138,-400.0,0.00049315,120]
[378833317,1755045052149,-400.0,0.00049315,120]
[378833318,1755045052159,-400.0,0.00049315,120]
[378833319,1755045052169,-400.0,0.00049315,120]
[378833320,1755045052180,-280.0,0.00049315,120]
[378833321,1755045052190,-400.0,0.00049315,120]
[378833322,1755045052199,-1120.81,0.00049315,120]
[378833323,1755045052209,-400.0,0.00049315,120]
[378833324,1755045052219,-400.0,0.00049315,120]
[378833325,1755045052229,-403.79882443,0.00049315,120]
[378833326,1755045052239,-400.0,0.00049315,120]
[378833327,1755045052249,-400.0,0.00049315,120]
[378833328,1755045052258,-400.0,0.00049315,120]
[378833329,1755045052268,-400.0,0.00049315,120]
[378833330,1755045052278,-400.0,0.00049315,120]
[378833331,1755045052288,-403.07,0.00049315,120]
[378833332,1755045052298,-400.0,0.00049315,120]
[378833333,1755045052308,-400.0,0.00049315,120]
[378833334,1755045052317,-400.0,0.00049315,120]
[378833335,1755045052327,-400.0,0.00049315,120]
[378833336,1755045052337,-756.88,0.00049315,120]
[378833337,1755045052348,-400.0,0.00049315,120]
[378833338,1755045052358,-400.0,0.00049315,120]
[378833339,1755045052368,-400.0,0.00049315,120]
[378833340,1755045052378,-400.0,0.00049315,120]
[378833341,1755045052388,-428.24,0.00049315,120]
[378833342,1755045052399,-400.0,0.00049315,120]
[378833343,1755045052409,-400.0,0.00049315,120]
[378833344,1755045052628,-529.39,0.00049315,120]
[378833345,1755045052639,-400.73529165,0.00049315,120]
[378833346,1755045052649,-400.0,0.00049315,120]
[378833347,1755045052659,-400.0,0.00049315,120]
[378833348,1755045052668,-400.0,0.00049315,120]
[378833349,1755045052678,-400.0,0.00049315,120]
[378833350,1755045052687,-400.0,0.00049315,120]
[378833351,1755045052697,-400.0,0.00049315,120]
[378833352,1755045052706,-565.61,0.00049315,120]
[378833353,1755045052715,-400.0,0.00049315,120]
[378833354,1755045052724,-830.8,0.00049315,120]
[378833355,1755045052734,-400.0,0.00049315,120]
[378833356,1755045052743,-400.0,0.00049315,120]
[378833357,1755045052752,-648.59,0.00049315,120]
[378833358,1755045052762,-400.0,0.00049315,120]
[378833359,1755045052771,-400.0,0.00049315,7]
[378833360,1755045052780,-400.0,0.00049315,120]
[378833361,1755045052789,-272.73386356,0.00049315,120]
[378833362,1755045052799,-400.0,0.00049315,120]
[378833363,1755045052808,-436.66,0.00049315,120]
[378833364,1755045052817,-400.0,0.00049315,120]
[378833365,1755045052826,-400.0,0.00049315,120]
[378833366,1755045052836,-400.0,0.00049315,120]
[378833367,1755045052845,-400.0,0.00049315,120]
[378833368,1755045052854,-400.0,0.00049315,120]
[378833369,1755045052863,-400.0,0.00049315,120]
[378833370,1755045052873,-400.0,0.00049315,120]
[378833371,1755045052883,-572.3,0.00049315,120]
[378833372,1755045052902,-400.0,0.00049315,120]
[378833373,1755045052914,-607.48,0.00049315,120]
[378833374,1755045052926,-400.0,0.00049315,120]
[378833375,1755045052936,-752.04,0.00049315,120]
[378833376,1755045052946,-400.0,0.00049315,120]
[378833377,1755045052956,-401.0380677,0.00049315,120]
[378833378,1755045052966,-787.32,0.00049315,120]
[378833379,1755045052976,-400.0,0.00049315,120]
[378833380,1755045052986,-400.0,0.00049315,120]
[378833381,1755045052997,-400.0,0.00049315,120]
[378833382,1755045053007,-400.0,0.00049315,120]
[378833383,1755045053017,-400.0,0.00049315,120]
[378833384,1755045053027,-400.0,0.00049315,120]
[378833385,1755045053037,-400.0,0.00049315,120]
[378833386,1755045053047,-400.0,0.00049315,120]
[378833387,1755045053057,-400.0,0.00049315,120]
[378833388,1755045053067,-702.47,0.00049315,120]
[378833389,1755045053077,-400.0,0.00049315,120]
[378833390,1755045053087,-837.33,0.00049315,120]
[378833391,1755045053097,-400.0,0.00049315,120]
[378833392,1755045053107,-400.0,0.00049315,120]
[378833393,1755045053117,-400.0,0.00049315,120]
[378833394,1755045053126,-500.0,0.00049315,120]
[378833395,1755045053136,-527.93,0.00049315,120]
[378833396,1755045053146,-400.0,0.00049315,120]
[378833397,1755045053157,-400.0,0.00049315,120]
[378833398,1755045053167,-400.0,0.00049315,120]
[378833399,1755045053178,-400.0,0.00049315,120]
[378833400,1755045053188,-580.88,0.00049315,120]
[378833401,1755045053198,-400.0,0.00049315,120]
[378833402,1755045053208,-400.0,0.00049315,120]
[378833403,1755045053218,-400.0,0.00049315,120]
[378833404,1755045053228,-400.0,0.00049315,120]
[378833405,1755045053239,-400.0,0.00049315,120]
[378833406,1755045053249,-366.17,0.00049315,120]
[378833407,1755045053260,-400.0,0.00049315,120]
[378833408,1755045053270,-400.0,0.00049315,120]
[378833409,1755045053280,-408.31,0.00049315,120]
[378833410,1755045053290,-400.0,0.00049315,120]
[378833411,1755045053300,-639.42,0.00049315,120]
[378833412,1755045053310,-400.0,0.00049315,120]
[378833413,1755045053320,-400.0,0.00049315,120]
[378833414,1755045053330,-400.0,0.00049315,120]
[378833415,1755045053340,-400.0,0.00049315,120]
[378833416,1755045053350,-230.36982452,0.00049315,120]
[378833417,1755045053359,-1179.48,0.00049315,120]
[378833418,1755045053369,-822.02,0.00049315,120]
[378833419,1755045053378,-400.0,0.00049315,120]
[378833420,1755045053387,-400.0,0.00049315,120]
[378833421,1755045053397,-400.0,0.00049315,120]
[378833422,1755045053407,-390.93707433,0.00049315,120]
[378833423,1755045053418,-400.0,0.00049315,120]
[378833424,1755045053428,-400.0,0.00049315,120]
[378833425,1755045053438,-400.0,0.00049315,120]
[378833426,1755045053448,-1208.35,0.00049315,120]
[378833427,1755045053458,-400.0,0.00049315,120]
[378833428,1755045053467,-471.39,0.00049315,120]
[378833429,1755045053477,-400.76858311,0.00049315,120]
[378833430,1755045053487,-500.0,0.00049315,120]
[378833431,1755045053496,-500.0,0.00049315,120]
[378833432,1755045053506,-400.72623114,0.00049315,120]
[378833433,1755045053516,-400.0,0.00049315,120]
[378833434,1755045053525,-400.0,0.00049315,120]
[378833435,1755045053535,-902.97,0.00049315,120]
[378833436,1755045053545,-401.10747354,0.00049315,120]
[378833437,1755045053554,-826.41,0.00049315,120]
[378833438,1755045053564,-400.0,0.00049315,120]
[378833439,1755045053573,-400.0,0.00049315,120]
[378833440,1755045053583,-400.0,0.00049315,120]
[378833441,1755045053593,-500.0,0.00049315,120]
[378833442,1755045053603,-500.0,0.00049315,120]
[378833443,1755045053612,-500.0,0.00049315,120]
[378833444,1755045053621,-400.0,0.00049315,120]
[378833445,1755045053631,-400.0,0.00049315,120]
[378833446,1755045053640,-400.0,0.00049315,120]
[378833447,1755045053650,-730.64,0.00049315,120]
[378833448,1755045053659,-498.01,0.00049315,120]
[378833449,1755045053668,-731.15,0.00049315,120]
[378833450,1755045053678,-400.0,0.00049315,120]
[378833451,1755045053687,-400.0,0.00049315,120]
[378833452,1755045053697,-400.0,0.00049315,120]
[378833453,1755045053707,-3251.5,0.00049315,120]
[378833454,1755045053716,-400.0,0.00049315,120]
[378833455,1755045053725,-400.0,0.00049315,120]
[378833456,1755045053734,-400.0,0.00049315,120]
[378833457,1755045053744,-400.0,0.00049315,120]
[378833458,1755045053753,-400.0,0.00049315,120]
[378833459,1755045053762,-400.74154546,0.00049315,120]
[378833460,1755045053771,-400.0,0.00049315,120]
[378833461,1755045053780,-636.03,0.00049315,120]
[378833462,1755045053790,-400.0,0.00049315,120]
[378833463,1755045053799,-400.0,0.00049315,120]
[378833464,1755045053809,-460.0,0.00049315,120]
[378833465,1755045053819,-464.99168526,0.00049315,120]
[378833466,1755045053828,-151.0,0.00049315,30]
[378833467,1755045053838,-400.0,0.00049315,120]
[378833468,1755045053847,-400.0,0.00049315,120]
[378833469,1755045053857,-451.74,0.00049315,120]
[378833470,1755045053867,-400.0,0.00049315,120]
[378833471,1755045053877,-400.0,0.00049315,120]
[378833472,1755045053887,-768.37,0.00049315,120]
[378833473,1755045053901,-400.0,0.00049315,120]
[378833474,1755045053910,-400.5764102,0.00049315,120]
[378833475,1755045053921,-619.85,0.00049315,120]
[378833476,1755045053933,-400.0,0.00049315,120]
[378833477,1755045053942,-400.0,0.00049315,120]
[378833478,1755045053952,-400.0,0.00049315,120]
[378833479,1755045053963,-400.0,0.00049315,120]
[378833480,1755045053972,-400.0,0.00049315,120]
[378833481,1755045053982,-162.280557,0.00049315,120]
[378833482,1755045053992,-955.68,0.00049315,120]
[378833483,1755045054006,-400.0,0.00049315,120]
[378833484,1755045054016,-1116.3,0.00049315,120]
[378833485,1755045054026,-400.0,0.00049315,120]
[378833486,1755045054035,-400.0,0.00049315,120]
[378833487,1755045054044,-400.77012378,0.00049315,120]
[378833488,1755045054054,-400.0,0.00049315,120]
[378833489,1755045054064,-515.36,0.00049315,120]
[378833490,1755045054073,-400.0,0.00049315,120]
[378833491,1755045054082,-500.0,0.00049315,120]
[378833492,1755045054092,-500.0,0.00049315,120]
[378833493,1755045054102,-500.0,0.00049315,120]
[378833494,1755045054111,-2060.0,0.00049315,30]
[378833495,1755045054120,-400.0,0.00049315,120]
[378833496,1755045054130,-400.0,0.00049315,120]
[378833497,1755045054139,-1949.05,0.00049315,120]
[378833498,1755045054150,-400.0,0.00049315,120]
[378833499,1755045054159,-400.0,0.00049315,120]
[378833500,1755045054169,-400.0,0.00049315,120]
[378833501,1755045054178,-1333.94,0.00049315,120]
[378833502,1755045054188,-400.0,0.00049315,120]
[378833503,1755045054198,-540.05,0.00049315,120]
[378833504,1755045054207,-750.61,0.00049315,120]
[378833505,1755045054216,-764.04,0.00049315,120]
[378833506,1755045054226,-400.0,0.00049315,120]
[378833507,1755045054235,-1165.33,0.00049315,120]
[378833508,1755045054244,-932.37,0.00049315,120]
[378833509,1755045054254,-151.0,0.00049315,30]
[378833510,1755045054263,-813.91,0.00049315,120]
[378833511,1755045054273,-620.65,0.00049315,120]
[378833512,1755045054282,-151.0,0.00049315,30]
[378833513,1755045054291,-400.0,0.00049315,120]
[378833514,1755045054300,-435.2,0.00049315,120]
[378833515,1755045054310,-400.0,0.00049315,120]
[378833516,1755045054319,-400.0,0.00049315,120]
[378833517,1755045054329,-686.44,0.00049315,120]
[378833518,1755045054338,-1282.85,0.00049315,120]
[378833519,1755045054347,-702.47,0.00049315,120]
[378833520,1755045054357,-152.495348,0.00049315,120]
[378833521,1755045054366,-1201.7,0.00049315,120]
[378833522,1755045054376,-400.0,0.00049315,120]
[378833523,1755045054385,-1380.14,0.00049315,120]
[378833524,1755045054394,-400.0,0.00049315,120]
[378833525,1755045054406,-400.0,0.00049315,120]
[378833526,1755045054415,-544.95,0.00049315,120]
[378833527,1755045054424,-400.0,0.00049315,120]
[378833528,1755045054434,-400.0,0.00049315,120]
[378833529,1755045054443,-400.0,0.00049315,120]
[378833530,1755045054453,-400.0,0.00049315,120]
[378833531,1755045054462,-400.0,0.00049315,120]
[378833532,1755045054472,-1152.45,0.00049315,120]
[378833533,1755045054481,-1380.26,0.00049315,120]
[378833534,1755045054491,-738.85,0.00049315,120]
[378833535,1755045054500,-400.0,0.00049315,120]
[378833536,1755045054510,-690.43,0.00049315,120]
[378833537,1755045054519,-400.0,0.00049315,120]
[378833538,1755045054528,-400.0,0.00049315,120]
[378833539,1755045054538,-400.0,0.00049315,120]
[378833540,1755045054547,-151.0,0.00049315,30]
[378833541,1755045054557,-434.26,0.00049315,120]
[378833542,1755045054566,-400.0,0.00049315,120]
[378833543,1755045054575,-1271.89,0.00049315,120]
[378833544,1755045054585,-1157.21,0.00049315,120]
[378833545,1755045054594,-400.0,0.00049315,120]
[378833546,1755045054603,-1656.69,0.00049315,120]
[378833547,1755045054613,-520.0,0.00049315,120]
[378833548,1755045054622,-2510.51,0.00049315,120]
[378833549,1755045054631,-400.0,0.00049315,120]
[378833550,1755045054641,-400.0,0.00049315,120]
[378833551,1755045054650,-400.0,0.00049315,120]
[378833552,1755045054660,-417.44,0.00049315,120]
[378833553,1755045054669,-151.0,0.00049315,30]
[378833554,1755045054678,-1796.85,0.00049315,120]
[378833555,1755045054688,-618.42,0.00049315,120]
[378833556,1755045054697,-400.0,0.00049315,120]
[378833557,1755045054706,-400.0,0.00049315,120]
[378833558,1755045054715,-2526.1,0.00049315,120]
[378833559,1755045054724,-408.75901173,0.00049315,120]
[378833560,1755045054733,-776.82,0.00049315,120]
[378833561,1755045054742,-1030.04,0.00049315,120]
[378833562,1755045054751,-400.0,0.00049315,120]
[378833563,1755045054760,-282.219926,0.00049315,30]
[378833564,1755045054769,-400.0,0.00049315,120]
[378833565,1755045054779,-487.14,0.00049315,120]
[378833566,1755045054788,-400.0,0.00049315,120]
[378833567,1755045054797,-1151.72,0.00049315,120]
[378833568,1755045054807,-1224.89,0.00049315,120]
[378833569,1755045054816,-2578.88,0.00049315,120]
[378833570,1755045054826,-1059.15,0.00049315,120]
[378833571,1755045054835,-447.39,0.00049315,120]
[378833572,1755045054844,-151.0,0.00049315,30]
[378833573,1755045054853,-400.0,0.00049315,120]
[378833574,1755045054862,-890.8,0.00049315,120]
[378833575,1755045054871,-1765.11,0.00049315,120]
[378833576,1755045054881,-400.0,0.00049315,120]
[378833577,1755045054890,-151.0,0.00049315,30]
[378833578,1755045054899,-400.0,0.00049315,120]
[378833579,1755045054909,-1108.61,0.00049315,120]
[378833580,1755045055001,-592.5,0.00049315,120]
[378833581,1755045055011,-400.0,0.00049315,120]
[378833582,1755045055020,-400.0,0.00049315,120]
[378833583,1755045055030,-400.0,0.00049315,120]
[378833584,1755045055039,-810.66,0.00049315,120]
[378833585,1755045055048,-1010.99,0.00049315,120]
[378833586,1755045055058,-400.0,0.00049315,120]
[378833587,1755045055068,-400.0,0.00049315,120]
[378833588,1755045055077,-1281.46,0.00049315,120]
[378833589,1755045055086,-400.0,0.00049315,120]
[378833590,1755045055095,-400.0,0.00049315,120]
[378833591,1755045055104,-400.0,0.00049315,120]
[378833592,1755045055113,-400.0,0.00049315,120]
[378833593,1755045055122,-400.0,0.00049315,120]
[378833594,1755045055131,-400.0,0.00049315,120]
[378833595,1755045055140,-400.0,0.00049315,120]
[378833596,1755045055149,-400.0,0.00049315,120]
[378833597,1755045055158,-400.0,0.00049315,120]
[378833598,1755045055167,-1165.82,0.00049315,120]
[378833599,1755045055176,-573.65,0.00049315,120]
[378833600,1755045055185,-400.0,0.00049315,120]
[378833601,1755045055194,-697.01,0.00049315,120]
[378833602,1755045055203,-544.77,0.00049315,120]
[378833603,1755045055212,-400.0,0.00049315,120]
[378833604,1755045055222,-400.0,0.00049315,120]
[378833605,1755045055231,-894.392928,0.00049315,30]
[378833606,1755045055240,-400.0,0.00049315,120]
[378833607,1755045055249,-400.0,0.00049315,120]
[378833608,1755045055259,-400.0,0.00049315,120]
[378833609,1755045055268,-1061.2,0.00049315,120]
[378833610,1755045055278,-453.34,0.00049315,120]
[378833611,1755045055287,-894.392928,0.00049315,30]
[378833612,1755045055296,-400.0,0.00049315,120]
[378833613,1755045055305,-400.0,0.00049315,120]
[378833614,1755045055315,-460.0,0.00049315,120]
[378833615,1755045055324,-518.82,0.00049315,120]
[378833616,1755045055333,-797.59,0.00049315,120]
[378833617,1755045055342,-400.0,0.00049315,120]
[378833618,1755045055351,-400.0,0.00049315,120]
[378833619,1755045055360,-881.83,0.00049315,120]
[378833620,1755045055369,-400.0,0.00049315,120]
[378833621,1755045055379,-400.0,0.00049315,120]
[378833622,1755045055388,-400.0,0.00049315,120]
[378833623,1755045055397,-400.0,0.00049315,120]
[378833624,1755045055407,-977.36,0.00049315,120]
[378833625,1755045055416,-462.52,0.00049315,120]
[378833626,1755045055426,-400.0,0.00049315,120]
[378833627,1755045055435,-400.0,0.00049315,120]
[378833628,1755045055444,-400.0,0.00049315,60]
[378833629,1755045055453,-284.199517,0.00049315,30]
[378833630,1755045055462,-400.0,0.00049315,120]
[378833631,1755045055471,-400.0,0.00049315,120]
[378833632,1755045055480,-273.45121499,0.00049315,120]
[378833633,1755045055489,-400.0,0.00049315,120]
[378833634,1755045055499,-935.05,0.00049315,120]
[378833635,1755045055515,-420.57,0.00049315,120]
[378833636,1755045055524,-497.82,0.00049315,120]
[378833637,1755045055534,-859.73,0.00049315,120]
[378833638,1755045055543,-151.0,0.00049315,30]
[378833639,1755045055552,-701.68,0.00049315,120]
[378833640,1755045055561,-400.0,0.00049315,120]
[378833641,1755045055570,-3191.8,0.00049315,120]
[378833642,1755045055579,-749.46,0.00049315,120]
[378833643,1755045055588,-400.0,0.00049315,120]
[378833644,1755045055597,-12736.38,0.00049315,120]
[378833645,1755045055606,-300.0,0.00049315,120]
[378833646,1755045055615,-400.0,0.00049315,120]
[378833647,1755045055624,-400.0,0.00049315,120]
[378833648,1755045055633,-400.0,0.00049315,120]
[378833649,1755045055642,-669.91,0.00049315,120]
[378833650,1755045055652,-430.05,0.00049315,120]
[378833651,1755045055662,-400.0,0.00049315,120]
[378833652,1755045055671,-400.0,0.00049315,120]
[378833653,1755045055680,-562.97,0.00049315,120]
[378833654,1755045055689,-1561.59,0.00049315,120]
[378833655,1755045055698,-1056.11,0.00049315,120]
[378833656,1755045055707,-400.0,0.00049315,120]
[378833657,1755045055717,-520.0,0.00049315,120]
[378833658,1755045055726,-400.0,0.00049315,120]
[378833659,1755045055735,-1000.15,0.00049315,120]
[378833660,1755045055745,-2066.2,0.00049315,120]
[378833661,1755045055755,-624.2,0.00049315,120]
[378833662,1755045055764,-522.46,0.00049315,120]
[378833663,1755045055773,-400.0,0.00049315,120]
[378833664,1755045055783,-529.1,0.00049315,120]
[378833665,1755045055800,-151.0,0.00049315,30]
[378833666,1755045055811,-400.0,0.00049315,120]
[378833667,1755045055821,-773.79,0.00049315,120]
[378833668,1755045055830,-400.0,0.00049315,120]
[378833669,1755045055839,-400.0,0.00049315,120]
[378833670,1755045055850,-1398.45,0.00049315,120]
[378833671,1755045055859,-682.17,0.00049315,120]
[378833672,1755045055868,-756.78,0.00049315,120]
[378833673,1755045055877,-400.0,0.00049315,120]
[378833674,1755045055887,-962.41,0.00049315,120]
[378833675,1755045055896,-400.0,0.00049315,120]
[378833676,1755045055906,-600.81,0.00049315,120]
[378833677,1755045055916,-422.76,0.00049315,120]
[378833678,1755045055927,-1373.58,0.00049315,120]
[378833679,1755045055936,-429.79,0.00049315,120]
[378833680,1755045055945,-400.0,0.00049315,120]
[378833681,1755045055955,-400.0,0.00049315,120]
[378833682,1755045055965,-2400.43,0.00049315,120]
[378833683,1755045055974,-400.0,0.00049315,120]
[378833684,1755045055983,-400.0,0.00049315,120]
[378833685,1755045055992,-400.0,0.00049315,120]
[378833686,1755045056004,-400.0,0.00049315,120]
[378833687,1755045056013,-400.0,0.00049315,120]
[378833688,1755045056022,-400.0,0.00049315,120]
[378833689,1755045056031,-696.48,0.00049315,120]
[378833690,1755045056040,-954.55,0.00049315,120]
[378833691,1755045056049,-400.0,0.00049315,120]
[378833692,1755045056058,-923.02,0.00049315,120]
[378833693,1755045056067,-769.73,0.00049315,120]
[378833694,1755045056075,-400.0,0.00049315,120]
[378833695,1755045056084,-400.0,0.00049315,120]
[378833696,1755045056093,-400.0,0.00049315,120]
[378833697,1755045056103,-687.9,0.00049315,120]
[378833698,1755045056112,-400.0,0.00049315,118]
[378833699,1755045056120,-400.0,0.00049315,120]
[378833700,1755045056129,-400.0,0.00049315,120]
[378833701,1755045056139,-859.26,0.00049315,120]
[378833702,1755045056148,-1013.2,0.00049315,120]
[378833703,1755045056157,-515.78,0.00049315,120]
[378833704,1755045056167,-400.0,0.00049315,120]
[378833705,1755045056176,-400.0,0.00049315,120]
[378833706,1755045056185,-400.0,0.00049315,120]
[378833707,1755045056194,-400.0,0.00049315,120]
[378833708,1755045056203,-468.85,0.00049315,120]
[378833709,1755045056212,-400.0,0.00049315,120]
[378833710,1755045056221,-1378.27,0.00049315,120]
[378833711,1755045056231,-400.0,0.00049315,120]
[378833712,1755045056241,-412.19095609,0.00049315,120]
[378833713,1755045056251,-461.79,0.00049315,120]
[378833714,1755045056260,-400.0,0.00049315,120]
[378833715,1755045056271,-2794.26,0.00049315,120]
[378833716,1755045056280,-616.95,0.00049315,120]
[378833717,1755045056289,-400.0,0.00049315,120]
[378833718,1755045056298,-985.15,0.00049315,120]
[378833719,1755045056307,-400.0,0.00049315,120]
[378833720,1755045056317,-1398.8,0.00049315,120]
[378833721,1755045056326,-543.08,0.00049315,120]
[378833722,1755045056335,-882.98,0.00049315,120]
[378833723,1755045056344,-1185.35,0.00049315,120]
[378833724,1755045056353,-530.65,0.00049315,120]
[378833725,1755045056364,-1143.26,0.00049315,120]
[378833726,1755045056373,-400.0,0.00049315,120]
[378833727,1755045056382,-400.0,0.00049315,120]
[378833728,1755045056392,-400.0,0.00049315,120]
[378833729,1755045056401,-400.0,0.00049315,120]
[378833730,1755045056410,-383.67740006,0.00049315,120]
[378833731,1755045056419,-400.0,0.00049315,120]
[378833732,1755045056428,-400.0,0.00049315,120]
[378833733,1755045056437,-400.0,0.00049315,120]
[378833734,1755045056447,-824.54,0.00049315,120]
[378833735,1755045056457,-673.11,0.00049315,120]
[378833736,1755045056465,-400.0,0.00049315,120]
[378833737,1755045056475,-555.94,0.00049315,120]
[378833738,1755045056484,-577.97,0.00049315,120]
[378833739,1755045056495,-400.0,0.00049315,120]
[378833740,1755045056504,-400.0,0.00049315,120]
[378833741,1755045056513,-400.0,0.00049315,120]
[378833742,1755045056525,-536.9,0.00049315,120]
[378833743,1755045056536,-400.0,0.00049315,120]
[378833744,1755045056546,-400.0,0.00049315,120]
[378833745,1755045056555,-490.0,0.00049315,120]
[378833746,1755045056564,-1565.73,0.00049315,120]
[378833747,1755045056574,-634.87,0.00049315,120]
[378833748,1755045056582,-1342.37,0.00049315,120]
[378833749,1755045056592,-400.0,0.00049315,120]
[378833750,1755045056601,-400.0,0.00049315,120]
[378833751,1755045056610,-1039.87,0.00049315,120]
[378833752,1755045056620,-400.0,0.00049315,120]
[378833753,1755045056629,-1253.15,0.00049315,120]
[378833754,1755045056638,-400.0,0.00049315,120]
[378833755,1755045056647,-348.62675235,0.00049315,120]
[378833756,1755045056656,-433.12,0.00049315,120]
[378833757,1755045056666,-400.0,0.00049315,120]
[378833758,1755045056676,-417.53,0.00049315,120]
[378833759,1755045056685,-400.0,0.00049315,120]
[378833760,1755045056695,-488.99412338,0.00049315,120]
[378833761,1755045056705,-400.0,0.00049315,120]
[378833762,1755045056714,-1184.27,0.00049315,120]
[378833763,1755045056723,-400.0,0.00049315,120]
[378833764,1755045056733,-837.15,0.00049315,120]
[378833765,1755045056742,-400.0,0.00049315,120]
[378833766,1755045056752,-400.0,0.00049315,120]
[378833767,1755045056761,-400.0,0.00049315,120]
[378833768,1755045056770,-400.0,0.00049315,120]
[378833769,1755045056779,-151.0,0.00049315,30]
[378833770,1755045056788,-460.0,0.00049315,120]
[378833771,1755045056798,-400.0,0.00049315,120]
[378833772,1755045056807,-1203.38,0.00049315,120]
[378833773,1755045056816,-1073.76,0.00049315,120]
[378833774,1755045056826,-496.08,0.00049315,120]
[378833775,1755045056835,-434.69,0.00049315,120]
[378833776,1755045056844,-2300.01,0.00049315,120]
[378833777,1755045056853,-400.0,0.00049315,120]
[378833778,1755045056863,-400.0,0.00049315,120]
[378833779,1755045056873,-400.0,0.00049315,120]
[378833780,1755045056883,-400.0,0.00049315,120]
[378833781,1755045056892,-400.0,0.00049315,120]
[378833782,1755045056903,-1419.33,0.00049315,120]
[378833783,1755045056912,-400.0,0.00049315,120]
[378833784,1755045056923,-1610.08,0.00049315,120]
[378833785,1755045056933,-401.49,0.00049315,120]
[378833786,1755045056943,-533.8,0.00049315,120]
[378833787,1755045056953,-476.01,0.00049315,120]
[378833788,1755045056963,-646.5,0.00049315,120]
[378833789,1755045056972,-442.68,0.00049315,120]
[378833790,1755045056982,-954.26,0.00049315,120]
[378833791,1755045056991,-400.0,0.00049315,120]
[378833792,1755045057001,-400.0,0.00049315,120]
[378833793,1755045057011,-1400.8,0.00049315,120]
[378833794,1755045057022,-1000.0,0.00049315,2]
[378833795,1755045057031,-400.0,0.00049315,120]